bitfinex/quotes_SOLUSD_20240717
["timestamp","ask_amount","ask_price","bid_price","bid_amount"]
[1721179715380,16.223366,163.03,162.98,0.8402016]
[1721179715758,16.223366,163.03,162.98,21.7558016]
[1721179715991,1.443366,163.03,162.99,1.22691663]
[1721179716277,16.053366,163.03,162.99,1.22691663]
[1721179716479,1.273366,163.03,162.99,1.22691663]
[1721179716852,6.3351,163.04,162.99,22.14221663]
[1721179717174,15.883366,163.06,163.01,14.78]
[1721179717375,0.34,163.05,163.0,16.00672056]
[1721179718178,14.78,163.03,162.98,15.6202016]
[1721179718346,16.053366,163.02,162.98,0.8402016]
[1721179718947,16.053366,163.02,162.98,2.06718706]
[1721179719157,14.95,163.02,162.98,2.06718706]
[1721179719375,14.95,163.02,162.98,0.8402016]
[1721179719577,15.883366,163.01,162.98,0.8402016]
[1721179720446,1.103366,163.0,162.98,0.8402016]
[1721179720647,15.883366,163.0,162.98,0.8402016]
[1721179720963,15.12,162.99,162.98,0.8402016]
[1721179722876,21.2553,162.99,162.98,0.8402016]
[1721179723171,15.12,162.99,162.98,0.8402016]
[1721179726853,0.34,162.99,162.98,0.8402016]
[1721179727187,15.12,162.99,162.98,0.8402016]
[1721179727487,0.34,162.99,162.98,0.8402016]
[1721179727782,14.95,162.99,162.98,0.8402016]
[1721179728363,0.17,162.99,162.98,0.8402016]
[1721179728585,13.320166,163.05,162.98,0.8402016]
[1721179728893,14.78,163.03,162.98,2.06719714]
[1721179729186,15.883366,163.02,162.98,2.06719714]
[1721179729383,14.78,163.02,162.99,6.1352]
[1721179729590,6.0834,163.05,162.99,20.9152]
[1721179729591,7.186766,163.05,162.99,20.9152]
[1721179729770,21.966766,163.05,162.99,20.9152]
[1721179729972,21.966766,163.05,162.99,14.78]
[1721179729973,14.78,163.04,162.99,14.78]
[1721179730177,14.78,163.04,162.99,20.9153]
[1721179730371,1.103366,163.05,163.0,1.2267608]
[1721179730580,1.103366,163.05,163.0,16.0067608]
[1721179731499,15.883366,163.05,162.99,14.78]
[1721179731806,14.78,163.04,162.98,30.9588016]
[1721179731987,1.103366,163.03,162.98,15.6202016]
[1721179732174,15.883366,163.03,162.98,15.6202016]
[1721179732586,16.223366,163.04,162.99,1.22692563]
[1721179733082,16.223366,163.04,162.98,15.6202016]
[1721179733273,14.78,163.03,162.98,15.6202016]
[1721179733587,1.103366,163.02,162.98,0.8402016]
[1721179733893,1.443366,163.04,162.98,0.8402016]
[1721179734186,1.443366,163.04,162.99,1.2269351]
[1721179734562,16.223366,163.04,162.99,16.0069351]
[1721179734768,14.78,163.03,162.99,1.2269351]
[1721179734966,14.78,163.03,162.98,21.7558016]
[1721179734967,1.103366,163.02,162.98,0.8402016]
[1721179735264,0.17,163.02,162.98,15.6202016]
[1721179735486,0.17,163.02,162.99,1.22695689]
[1721179735689,0.17,163.02,162.98,16.84715849]
[1721179735987,0.17,163.02,162.99,1.22695707]
[1721179736178,0.17,163.02,162.98,15.6202016]
[1721179736373,1.273366,163.02,162.98,15.6202016]
[1721179736581,14.78,163.03,162.98,15.6202016]
[1721179736582,1.103366,163.03,162.98,21.7558016]
[1721179736773,0.17,163.04,162.99,6.1352]
[1721179736975,0.34,163.05,162.98,21.7558016]
[1721179737191,6.4727,163.06,162.98,15.6202016]
[1721179737368,6.1331,163.05,162.98,15.6202016]
[1721179737574,6.1331,163.05,162.98,0.8402016]
[1721179737575,0.34,163.04,162.98,0.8402016]
[1721179737781,0.34,163.04,162.98,15.6202016]
[1721179738181,0.17,163.03,162.98,15.6202016]
[1721179738390,1.273366,163.04,162.98,0.8402016]
[1721179738595,0.17,163.03,162.98,0.8402016]
[1721179739376,14.78,163.02,162.98,0.8402016]
[1721179739576,1.103366,163.01,162.98,0.8402016]
[1721179740010,14.78,162.99,162.98,0.8402016]
[1721179740298,14.78,163.01,162.98,6.9759016]
[1721179740503,15.883366,163.02,162.98,6.9759016]
[1721179740692,15.883366,163.02,162.98,0.8402016]
[1721179740866,15.883366,163.02,162.98,2.06719896]
[1721179741295,15.883366,163.02,162.98,8.20279896]
[1721179741497,15.6806,163.03,162.99,1.22690521]
[1721179741498,0.17,163.03,162.99,1.22690521]
[1721179741802,16.223366,163.04,162.99,1.22690521]
[1721179741980,1.103366,163.03,162.98,15.6202016]
[1721179742173,15.883366,163.03,162.98,15.6202016]
[1721179742373,14.78,163.03,162.99,1.22688473]
[1721179743776,1.103366,163.06,163.0,14.78]
[1721179743777,14.78,163.05,163.0,14.78]
[1721179744195,14.78,163.05,162.99,20.9152]
[1721179744196,1.103366,163.04,162.99,20.9152]
[1721179744391,1.103366,163.06,163.02,6.134]
[1721179744699,15.4233,163.08,163.03,7.36031882]
[1721179744700,1.103366,163.08,163.03,7.36031882]
[1721179744875,1.103366,163.08,163.03,22.14031882]
[1721179745080,1.103366,163.08,163.03,16.00661882]
[1721179745278,22.126566,163.09,163.03,16.00661882]
[1721179746098,14.78,163.08,163.02,6.1341]
[1721179746295,14.78,163.08,163.02,14.78]
[1721179746502,14.78,163.08,163.03,14.78]
[1721179746807,14.78,163.08,163.02,6.1341]
[1721179746984,1.103366,163.07,163.02,14.78]
[1721179747188,15.883366,163.07,163.01,21.4704]
[1721179747392,15.883366,163.08,163.02,14.78]
[1721179747902,14.78,163.03,162.98,0.8402016]
[1721179749083,1.103366,163.06,163.0,14.78]
[1721179749307,0.34,163.05,163.0,1.2267442]
[1721179749497,0.17,163.06,163.0,1.2267442]
[1721179749689,14.78,163.05,162.99,20.915]
[1721179750009,14.78,163.04,162.99,14.78]
[1721179750180,0.17,163.06,162.98,6.9758016]
[1721179750181,15.883366,163.03,162.98,15.6202016]
[1721179750504,1.443366,163.02,162.98,0.8402016]
[1721179750817,14.78,163.04,162.99,1.22699866]
[1721179751015,1.273366,163.03,162.98,15.6202016]
[1721179751317,0.17,163.03,162.99,1.22688663]
[1721179751698,0.17,163.03,162.99,16.00688663]
[1721179752099,0.17,163.03,162.99,22.14198663]
[1721179752505,0.17,163.04,162.99,16.00688663]
[1721179752904,14.95,163.05,162.99,14.78]
[1721179753293,14.95,163.05,162.98,6.9758016]
[1721179753499,14.95,163.05,162.99,20.9152]
[1721179754106,14.78,163.04,162.99,6.1352]
[1721179754501,14.78,163.05,163.0,7.36156576]
[1721179754706,1.103366,163.08,163.01,20.9144]
[1721179754901,15.883366,163.07,163.02,1.22663861]
[1721179755111,14.78,163.05,163.0,14.78]
[1721179755417,14.78,163.05,163.0,1.22673658]
[1721179755620,14.78,163.05,163.0,16.00673658]
[1721179756024,14.78,163.05,163.0,22.14163658]
[1721179756230,15.883366,163.04,162.99,30.1176]
[1721179756394,14.78,163.04,162.99,30.1176]
[1721179756595,14.78,163.05,163.0,1.22678132]
[1721179756913,14.78,163.05,163.0,16.00678132]
[1721179757098,14.78,163.05,162.99,36.2528]
[1721179757414,16.053366,163.04,162.98,2.06693197]
[1721179757623,14.78,163.03,162.98,15.6202016]
[1721179757799,1.273366,163.04,162.99,1.22685663]
[1721179758127,1.273366,163.04,162.99,1.22686377]
[1721179758128,16.053366,163.04,162.99,1.22686377]
[1721179758502,1.103366,163.03,162.99,1.22686377]
[1721179759931,1.103366,163.03,162.99,7.36216377]
[1721179760130,14.95,163.05,163.0,6.1349]
[1721179760306,14.95,163.05,163.01,1.22676472]
[1721179760504,0.17,163.05,163.01,1.22676676]
[1721179760704,0.17,163.05,163.0,20.9149]
[1721179760705,0.17,163.05,163.02,1.22675215]
[1721179760906,1.103366,163.08,163.01,14.78]
[1721179761122,14.78,163.05,163.0,36.2511]
[1721179761330,14.78,163.05,163.0,36.2513]
[1721179761627,14.78,163.06,163.01,1.22667743]
[1721179762125,15.883366,163.05,163.0,15.3365]
[1721179762326,15.883366,163.04,162.99,20.9152]
[1721179762521,14.78,163.04,162.98,8.20256702]
[1721179762704,1.273366,163.03,162.98,6.9758016]
[1721179763024,16.053366,163.03,162.98,21.7558016]
[1721179763228,0.17,163.03,162.99,7.36196627]
[1721179763408,0.17,163.03,162.99,22.14196627]
[1721179763741,0.17,163.05,162.99,37.47956627]
[1721179763905,14.78,163.05,162.99,37.47956627]
[1721179764235,1.103366,163.04,162.99,36.2527]
[1721179764522,0.34,163.06,163.0,22.14156597]
[1721179764523,15.12,163.06,163.0,22.14156597]
[1721179764734,1.103366,163.08,163.02,30.1154]
[1721179764921,14.78,163.08,163.03,7.36033142]
[1721179765429,14.78,163.08,163.03,6.1338]
[1721179766033,14.78,163.08,163.04,7.35980816]
[1721179766328,15.3383,163.12,163.06,14.78]
[1721179766329,1.103366,163.11,163.06,14.78]
[1721179766535,1.103366,163.11,163.07,1.22627448]
[1721179766837,15.883366,163.11,163.07,1.22627448]
[1721179767133,14.78,163.11,163.07,1.22627448]
[1721179767339,1.103366,163.13,163.07,1.22627448]
[1721179767506,14.78,163.12,163.07,1.22627448]
[1721179767707,15.883366,163.13,163.07,16.00627234]
[1721179767902,14.78,163.12,163.07,1.22627234]
[1721179769027,0.17,163.11,163.07,1.22627234]
[1721179769238,14.78,163.1,163.04,1.22627289]
[1721179769525,15.883366,163.1,163.05,14.78]
[1721179769906,0.17,163.09,163.05,14.78]
[1721179770112,0.34,163.09,163.05,14.78]
[1721179770429,0.34,163.09,163.02,15.7231]
[1721179770430,15.883366,163.08,163.02,15.7231]
[1721179770626,15.883366,163.08,163.02,36.6372]
[1721179771240,14.78,163.08,163.02,36.6372]
[1721179771534,14.78,163.08,163.03,14.78]
[1721179771831,1.103366,163.07,163.03,14.78]
[1721179772040,15.883366,163.07,163.02,6.134]
[1721179772215,15.883366,163.08,163.02,22.14052268]
[1721179772530,1.273366,163.07,163.02,16.00652268]
[1721179772835,1.273366,163.07,163.01,21.4706]
[1721179773129,14.95,163.06,163.01,30.1161]
[1721179773335,16.053366,163.06,163.01,30.1161]
[1721179773823,0.17,163.05,163.01,15.3361]
[1721179774022,0.17,163.05,163.01,22.69720493]
[1721179774330,0.17,163.05,163.02,1.22676279]
[1721179774660,1.273366,163.05,163.01,36.2505]
[1721179775158,16.053366,163.05,163.01,21.4705]
[1721179775452,59.12,163.17,163.03,30.1139]
[1721179775453,1.103366,163.08,163.03,30.1139]
[1721179775669,14.95,163.09,163.04,20.9131]
[1721179775962,0.17,163.08,163.04,7.35962995]
[1721179776259,16.053366,163.09,163.04,1.22650792]
[1721179777060,16.053366,163.09,163.04,16.00650792]
[1721179777366,0.17,163.1,163.06,6.1326]
[1721179777532,14.78,163.11,163.07,1.22632846]
[1721179777732,1.103366,163.1,163.06,16.00628121]
[1721179778067,15.883366,163.1,163.06,1.22636599]
[1721179778234,15.883366,163.11,163.06,6.1326]
[1721179778434,1.103366,163.1,163.06,6.1326]
[1721179779257,14.78,163.11,163.06,6.1326]
[1721179779561,14.78,163.11,163.07,6.1323]
[1721179779562,1.103366,163.11,163.07,6.1323]
[1721179780055,1.103366,163.11,163.07,7.35858146]
[1721179780264,1.443366,163.12,163.07,1.22628146]
[1721179780467,16.223366,163.12,163.07,1.22628146]
[1721179780640,16.223366,163.12,163.07,1.22628161]
[1721179780951,16.223366,163.12,163.06,20.9126]
[1721179781156,1.443366,163.12,163.07,16.00628171]
[1721179781347,1.443366,163.12,163.07,14.78]
[1721179781657,16.223366,163.12,163.07,1.22628178]
[1721179781964,6.5519,163.14,163.09,20.9115]
[1721179782140,21.3319,163.14,163.09,20.9115]
[1721179782343,21.3319,163.14,163.09,14.78]
[1721179782645,21.3319,163.14,163.1,1.22608139]
[1721179782856,21.3319,163.14,163.09,20.9115]
[1721179783448,6.5519,163.14,163.1,1.22606175]
[1721179783660,7.655266,163.14,163.11,1.22606213]
[1721179783981,15.883366,163.15,163.11,1.22606213]
[1721179784465,6.1825,163.18,163.11,1.22606213]
[1721179784640,1.103366,163.17,163.13,14.78]
[1721179784964,1.103366,163.17,163.12,14.78]
[1721179785269,14.78,163.18,163.13,1.22586774]
[1721179785449,1.103366,163.18,163.13,16.00586774]
[1721179785646,1.103366,163.19,163.13,16.00586774]
[1721179785842,15.883366,163.19,163.13,16.00586774]
[1721179786167,1.103366,163.2,163.13,1.22586774]
[1721179786361,15.883366,163.21,163.15,14.78]
[1721179786666,15.883366,163.21,163.16,16.00560354]
[1721179786968,1.103366,163.21,163.17,14.78]
[1721179787189,1.103366,163.24,163.18,1.22561143]
[1721179787349,14.78,163.23,163.18,16.00561143]
[1721179787671,30.999666,163.25,163.19,14.78]
[1721179787860,15.883366,163.25,163.2,16.00531208]
[1721179788058,15.883366,163.25,163.2,1.22531208]
[1721179788354,7.497066,163.26,163.21,1.22530242]
[1721179788558,22.277066,163.26,163.2,20.9072]
[1721179788766,14.78,163.25,163.2,20.9072]
[1721179789068,18.43,163.33,163.23,6.126]
[1721179789069,6.3704,163.31,163.23,6.126]
[1721179789272,14.78,163.29,163.24,6.1258]
[1721179789655,14.78,163.28,163.22,21.4424]
[1721179789848,14.78,163.28,163.23,22.13121641]
[1721179790053,14.78,163.28,163.24,1.22500451]
[1721179790354,1.103366,163.3,163.24,1.22500451]
[1721179790553,1.103366,163.29,163.22,21.4427]
[1721179790750,1.103366,163.3,163.23,1.22498507]
[1721179790962,1.273366,163.3,163.22,15.3161]
[1721179791157,1.103366,163.29,163.23,1.22489494]
[1721179791463,1.103366,163.29,163.22,21.4427]
[1721179791667,0.17,163.28,163.22,21.4427]
[1721179791868,0.17,163.28,163.23,1.22499154]
[1721179792073,0.17,163.28,163.24,1.22497758]
[1721179792273,1.103366,163.29,163.24,1.22497758]
[1721179793261,1.443366,163.3,163.24,1.22497758]
[1721179793556,1.443366,163.3,163.24,7.35087758]
[1721179793754,1.103366,163.31,163.25,6.1254]
[1721179793956,1.103366,163.31,163.24,21.44]
[1721179794568,1.103366,163.32,163.25,7.35026003]
[1721179794979,0.17,163.31,163.25,7.35026003]
[1721179795284,7.246466,163.35,163.3,6.1236]
[1721179795450,7.246466,163.35,163.27,15.3119]
[1721179795655,7.246466,163.35,163.28,6.1243]
[1721179795850,7.246466,163.35,163.27,21.4367]
[1721179796363,7.246466,163.35,163.28,7.34892481]
[1721179796568,1.103366,163.34,163.27,15.3119]
[1721179796770,0.17,163.33,163.29,1.22455001]
[1721179797167,7.246466,163.35,163.3,1.22463371]
[1721179797356,6.1431,163.35,163.3,1.22463371]
[1721179797579,1.103366,163.34,163.28,6.1243]
[1721179797770,7.246466,163.35,163.29,7.34843051]
[1721179797963,7.246466,163.35,163.3,1.22451237]
[1721179798156,6.1431,163.35,163.3,1.22451237]
[1721179798462,1.443366,163.36,163.3,7.34781237]
[1721179798786,0.34,163.36,163.31,6.1232]
[1721179798975,1.443366,163.37,163.32,1.22444108]
[1721179799171,1.443366,163.37,163.33,1.22439114]
[1721179799563,1.443366,163.37,163.31,6.1232]
[1721179799771,1.443366,163.37,163.32,1.22439286]
[1721179799974,1.103366,163.36,163.29,15.3095]
[1721179800181,0.34,163.35,163.26,30.9042]
[1721179800393,0.34,163.35,163.26,15.5913]
[1721179800564,0.34,163.35,163.26,30.9039]
[1721179800977,0.34,163.35,163.28,6.1243]
[1721179801152,6.1222,163.34,163.26,30.9039]
[1721179801354,6.123,163.32,163.26,1.22473477]
[1721179801678,17.551766,163.34,163.26,15.3127]
[1721179802064,17.551766,163.34,163.26,21.4378]
[1721179802267,16.4484,163.34,163.29,6.1239]
[1721179802470,1.103366,163.33,163.28,15.3105]
[1721179802656,1.103366,163.33,163.24,10.0]
[1721179802657,1.103366,163.33,163.25,15.3136]
[1721179802858,16.4484,163.34,163.28,6.1243]
[1721179803077,1.103366,163.36,163.29,1.22455413]
[1721179803380,15.0533,163.38,163.3,1.22441796]
[1721179803581,1.103366,163.4,163.31,25.3076]
[1721179803762,1.103366,163.4,163.32,1.22416084]
[1721179803960,16.704866,163.42,163.37,6.1209]
[1721179804281,6.1247,163.28,163.22,15.7943]
[1721179804481,1.103366,163.33,163.19,10.0]
[1721179804686,16.411466,163.32,163.18,15.7943]
[1721179804987,16.411466,163.32,163.17,35.3205]
[1721179805291,16.411466,163.32,163.19,15.3188]
[1721179805292,0.34,163.31,163.19,15.3188]
[1721179805466,6.1245,163.28,163.19,21.4463]
[1721179805665,1.273366,163.27,163.22,15.316]
[1721179805864,0.17,163.28,163.2,6.1271]
[1721179806063,0.17,163.28,163.21,1.22507686]
[1721179806266,1.103366,163.33,163.24,25.3139]
[1721179806565,1.103366,163.33,163.25,7.34984583]
[1721179806775,7.225966,163.33,163.26,1.22470136]
[1721179806972,21.8267,163.34,163.27,1.22469949]
[1721179807187,6.0366,163.34,163.28,7.34886734]
[1721179807372,6.0366,163.34,163.29,6.124]
[1721179807578,6.0366,163.34,163.3,1.22444273]
[1721179807783,6.0366,163.34,163.29,6.124]
[1721179807964,6.0366,163.34,163.28,15.3103]
[1721179808170,6.0366,163.34,163.26,6.1251]
[1721179808365,13.262266,163.34,163.26,6.1251]
[1721179808593,6.1226,163.33,163.25,15.3137]
[1721179808897,6.1236,163.31,163.21,20.0]
[1721179809197,7.396266,163.32,163.21,20.0]
[1721179809484,0.34,163.31,163.21,20.0]
[1721179809695,0.17,163.31,163.24,6.1258]
[1721179809896,1.103366,163.32,163.24,6.1258]
[1721179810209,1.103366,163.32,163.23,21.4412]
[1721179810210,0.17,163.31,163.23,21.4412]
[1721179810365,1.103366,163.3,163.22,6.1266]
[1721179810561,0.34,163.31,163.22,10.0]
[1721179810787,0.17,163.31,163.22,10.0]
[1721179811005,1.443366,163.32,163.23,15.3151]
[1721179811170,0.34,163.32,163.26,6.125]
[1721179811368,1.103366,163.33,163.26,6.125]
[1721179811681,1.103366,163.33,163.27,1.22468658]
[1721179811885,1.103366,163.33,163.26,6.125]
[1721179812087,6.0366,163.34,163.28,10.0]
[1721179812291,6.0366,163.34,163.29,6.1239]
[1721179812802,6.0366,163.34,163.28,15.3104]
[1721179812973,1.103366,163.37,163.29,1.22441822]
[1721179813317,1.103366,163.37,163.3,1.22434324]
[1721179813810,21.103366,163.37,163.3,1.22434324]
[1721179814001,16.619766,163.39,163.31,25.3077]
[1721179814211,6.2153,163.4,163.33,10.0]
[1721179814494,6.2153,163.4,163.36,6.1213]
[1721179814671,16.2186,163.43,163.37,7.34486945]
[1721179815071,16.2186,163.43,163.36,6.1213]
[1721179815488,1.103366,163.42,163.33,10.0]
[1721179815769,7.222566,163.42,163.33,6.1225]
[1721179815971,17.321966,163.43,163.35,16.1217]
[1721179816200,17.321966,163.43,163.35,6.1217]
[1721179816492,1.103366,163.42,163.34,6.1221]
[1721179816797,17.321966,163.43,163.35,16.1215]
[1721179816970,17.321966,163.43,163.36,6.1214]
[1721179817172,16.2186,163.43,163.36,7.34515837]
[1721179817674,7.653766,163.45,163.37,6.1209]
[1721179817872,7.653766,163.45,163.38,1.22374332]
[1721179818179,6.5504,163.45,163.38,7.34434332]
[1721179818599,6.5504,163.45,163.39,6.1203]
[1721179818780,6.5504,163.45,163.4,1.22369085]
[1721179820207,6.5504,163.45,163.38,6.1206]
[1721179820376,6.5504,163.45,163.37,25.302]
[1721179820580,7.653766,163.45,163.34,15.3052]
[1721179820779,0.17,163.44,163.35,6.1217]
[1721179820993,1.273366,163.44,163.36,15.3029]
[1721179821200,1.273366,163.44,163.36,21.4242]
[1721179821399,1.273366,163.44,163.36,15.3029]
[1721179821579,6.1191,163.43,163.34,6.1221]
[1721179821780,1.273366,163.42,163.34,6.1221]
[1721179821999,6.1196,163.41,163.35,1.2240001]
[1721179822178,1.273366,163.42,163.35,1.2240001]
[1721179822380,7.392866,163.42,163.36,1.22400271]
[1721179822579,0.17,163.41,163.34,1.22403943]
[1721179822797,29.5,163.41,163.3,20.0]
[1721179823102,0.17,163.4,163.34,6.1218]
[1721179823418,1.443366,163.42,163.35,7.34565247]
[1721179823593,1.443366,163.42,163.36,1.22401395]
[1721179823774,1.443366,163.42,163.36,7.34521395]
[1721179823976,29.5,163.44,163.36,7.34521395]
[1721179824206,30.603366,163.44,163.37,6.1207]
[1721179824412,36.721766,163.44,163.36,6.1214]
[1721179824802,0.17,163.43,163.32,15.3072]
[1721179825101,6.1196,163.41,163.32,21.4298]
[1721179825289,0.34,163.43,163.33,10.0]
[1721179825494,0.17,163.43,163.35,25.3042]
[1721179825690,0.17,163.43,163.31,30.6156]
[1721179825691,44.8032,163.37,163.26,10.0]
[1721179825902,44.8032,163.37,163.24,6.1256]
[1721179825903,6.1228,163.33,163.24,6.1256]
[1721179826088,1.103366,163.32,163.22,25.3164]
[1721179826288,0.17,163.32,163.24,10.0]
[1721179826491,7.226166,163.33,163.24,16.1256]
[1721179826710,45.1357,163.34,163.27,6.1247]
[1721179827211,29.5,163.34,163.29,6.1238]
[1721179827414,6.4594,163.35,163.28,10.0]
[1721179827591,6.4594,163.35,163.27,15.3118]
[1721179827791,6.4594,163.35,163.29,6.124]
[1721179828014,6.4594,163.35,163.28,6.1243]
[1721179828385,7.562766,163.35,163.27,21.4365]
[1721179828696,6.1226,163.33,163.25,6.1254]
[1721179828886,6.1226,163.33,163.24,15.3147]
[1721179828887,7.225966,163.33,163.24,15.3147]
[1721179829096,7.226266,163.32,163.24,15.3147]
[1721179829314,6.1229,163.32,163.24,21.4405]
[1721179829611,7.565566,163.34,163.24,15.3147]
[1721179830117,6.1235,163.31,163.23,21.4413]
[1721179830418,1.103366,163.3,163.23,15.3151]
[1721179830613,7.227066,163.3,163.23,15.3151]
[1721179830936,7.227066,163.3,163.22,6.1266]
[1721179831120,6.1242,163.29,163.2,21.4457]
[1721179831420,1.103366,163.3,163.2,21.4457]
[1721179831421,1.103366,163.3,163.2,15.3185]
[1721179831620,29.84,163.32,163.2,15.3185]
[1721179831621,1.103366,163.29,163.2,15.3185]
[1721179831824,6.1251,163.27,163.18,6.1278]
[1721179831996,7.693766,163.26,163.19,6.1278]
[1721179832329,6.5904,163.26,163.2,6.1273]
[1721179832615,6.5904,163.26,163.19,21.4466]
[1721179833310,6.5904,163.26,163.21,6.1269]
[1721179833711,6.5904,163.26,163.19,25.3189]
[1721179833712,6.5904,163.26,163.2,6.1273]
[1721179834114,6.5904,163.26,163.21,6.127]
[1721179835130,6.5904,163.26,163.22,16.1265]
[1721179835430,15.7303,163.29,163.23,16.54011163]
[1721179835597,15.7303,163.29,163.24,1.22483659]
[1721179836002,15.7303,163.29,163.23,15.3152]
[1721179836302,15.7303,163.29,163.22,10.0]
[1721179836716,15.7303,163.29,163.23,1.19275523]
[1721179837028,1.103366,163.28,163.21,6.127]
[1721179837619,7.227766,163.28,163.2,15.3182]
[1721179837819,0.17,163.27,163.2,15.3182]
[1721179838019,0.17,163.27,163.21,1.22508471]
[1721179838407,15.9003,163.29,163.22,1.22500966]
[1721179838711,23.127766,163.29,163.22,1.22500966]
[1721179838903,0.17,163.28,163.23,1.22488754]
[1721179839095,17.003666,163.29,163.24,1.22481262]
[1721179839908,15.7303,163.29,163.24,1.22481262]
[1721179840407,6.4937,163.31,163.25,21.439]
[1721179840612,6.4937,163.31,163.25,15.3138]
[1721179840814,6.4937,163.31,163.25,21.4392]
[1721179841201,6.4937,163.31,163.26,1.22471366]
[1721179841410,6.4937,163.31,163.25,15.3138]
[1721179841722,6.4937,163.31,163.24,6.1258]
[1721179842022,6.4937,163.31,163.24,16.1259]
[1721179842226,6.4937,163.31,163.25,1.2247848]
[1721179842432,6.4937,163.31,163.26,6.1251]
[1721179842613,6.4937,163.31,163.27,1.22467013]
[1721179842820,6.4937,163.31,163.24,21.44]
[1721179843220,6.4937,163.31,163.2,20.0]
[1721179843221,30.603366,163.3,163.21,15.3174]
[1721179843530,0.17,163.29,163.22,0.91696576]
[1721179843731,1.103366,163.29,163.21,15.3174]
[1721179844206,1.103366,163.29,163.22,7.35137983]
[1721179844606,1.103366,163.29,163.21,15.3174]
[1721179844832,0.17,163.28,163.19,6.1277]
[1721179845005,0.17,163.28,163.2,6.1274]
[1721179845006,6.4645,163.28,163.2,6.1274]
[1721179845218,29.84,163.28,163.21,7.35198521]
[1721179845417,0.17,163.28,163.21,6.1269]
[1721179845632,23.792766,163.27,163.22,1.22502544]
[1721179845805,6.6332,163.27,163.23,11.22518184]
[1721179846006,6.6332,163.27,163.24,7.35064244]
[1721179846318,6.6332,163.27,163.24,1.22484244]
[1721179846519,22.8201,163.31,163.25,15.3133]
[1721179846720,22.8201,163.31,163.27,6.1247]
[1721179846915,22.8201,163.31,163.28,1.22462947]
[1721179847420,22.8201,163.31,163.25,15.3133]
[1721179848433,22.8201,163.31,163.26,1.22472809]
[1721179848631,22.8201,163.31,163.27,1.15251604]
[1721179848822,22.8201,163.31,163.24,6.1258]
[1721179849018,22.8201,163.31,163.25,7.350176]
[1721179849214,22.8201,163.31,163.25,6.1254]
[1721179849409,22.8201,163.31,163.26,1.22469717]
[1721179849638,22.8201,163.31,163.27,1.22480052]
[1721179849852,1.103366,163.3,163.25,1.22482154]
[1721179850050,1.103366,163.3,163.23,6.1262]
[1721179850223,1.103366,163.29,163.23,6.1262]
[1721179850651,1.103366,163.29,163.22,31.4431]
[1721179851235,1.103366,163.3,163.23,6.1261]
[1721179851550,1.103366,163.3,163.17,40.10520397]
[1721179851551,29.5,163.28,163.18,15.3195]
[1721179851756,45.4271,163.25,163.18,15.3195]
[1721179851924,45.4271,163.25,163.18,6.128]
[1721179852134,45.4271,163.25,163.19,6.1276]
[1721179852324,45.4271,163.25,163.2,1.22518379]
[1721179852526,45.4271,163.25,163.21,1.22517102]
[1721179852738,45.4271,163.25,163.18,16.1281]
[1721179852949,15.9271,163.25,163.2,6.1271]
[1721179853134,15.9271,163.25,163.21,1.22510724]
[1721179853335,6.2254,163.26,163.21,15.3171]
[1721179853850,6.2254,163.26,163.21,6.1269]
[1721179854835,6.2254,163.26,163.22,6.1265]
[1721179855234,6.2254,163.26,163.2,15.3181]
[1721179855235,6.2254,163.26,163.23,1.22500221]
[1721179855556,6.2254,163.26,163.24,1.22505726]
[1721179856058,6.2254,163.26,163.21,16.1269]